[Event "WCCC G10 2019"]
[Site "Weifang"]
[Date "2019.08.28"]
[Round "7.2"]
[White "Nurgaliyeva, Zarina"]
[Black "Kaliakhmet, Elnaz"]
[Result "1/2-1/2"]
[ECO "E07"]
[WhiteElo "1474"]
[BlackElo "1538"]
[Annotator "NA RC"]
[PlyCount "127"]
[EventDate "2019.08.21"]
[EventType "swiss"]
[EventCountry "CHN"]
[SourceTitle "playchess.com"]
[Source "ChessBase"]
[SourceQuality "1"]
[TimeControl "40/5400+30:1800+30"]

1. Nf3 {[%emt 0:00:00]} Nf6 {[%emt 0:00:00]} 2. g3 {[%emt 0:00:00]} d5 {[%emt 0:00:25]} 3. Bg2 {[%emt 0:00:00]} e6 {[%emt 0:00:06]} 4. b3 {[%emt 0:00:05]} Be7 {[%emt 0:00:29]} 5. c4 {[%emt 0:00:50]} c6 {[%emt 0:02:24]} 6. Bb2 {[%emt 0:01:23]} O-O {[%emt 0:00:24]} 7. O-O {[%emt 0:03:18]} Nbd7 {[%emt 0:01:10]} 8. Nc3 {[%emt 0:03:51]} b6 {[%emt 0:01:33]} 9. d4 {[%emt 0:02:54]} Bb7 {[%emt 0:04:14]} 10. Qd3 {[%emt 0:00:52]} c5 {[%emt 0:05:27]} 11. cxd5 {[%emt 0:05:12]} exd5 {[%emt 0:03:46]} 12. e3 {[%emt 0:03:35]} Qc7 {[%emt 0:05:43]} 13. Rfc1 {[%emt 0:08:02]} Rfd8 {[%emt 0:06:35]} 14. dxc5 {[%emt 0:03:59]} Nxc5 {[%emt 0:05:27]} 15. Qd1 {[%emt 0:02:37]} Qd6 {[%emt 0:04:40]} 16. Nd4 {[%emt 0:01:51]} Qd7 {[%emt 0:01:11]} 17. Nce2 {[%emt 0:12:13]} Nce4 {[%emt 0:11:13]} 18. Nf4 {[%emt 0:03:59]} Ng5 {[%emt 0:09:56]} 19. Rc2 {[%emt 0:05:25]} Bd6 {[%emt 0:03:09]} 20. Rac1 {[%emt 0:04:40]} Rac8 {[%emt 0:06:29]} 21. Nde2 {[%emt 0:03:54]} Rxc2 {[%emt 0:04:35]} 22. Rxc2 {[%emt 0:00:25]} Be7 {[%emt 0:03:10]} 23. Qc1 {[%emt 0:02:35]} Ne8 {[%emt 0:03:27]} 24. Rd2 {[%emt 0:04:59]} Bb4 {[%emt 0:04:36]} 25. Bc3 {[%emt 0:02:26]} Bxc3 {[%emt 0:02:11]} 26. Nxc3 {[%emt 0:01:21]} Nf6 {[%emt 0:05:38]} 27. Ncxd5 {[%emt 0:05:09]} Nxd5 {[%emt 0:00:15]} 28. Nxd5 {[%emt 0:00:33]} Bxd5 {[%emt 0:03:32]} 29. Rxd5 {[%emt 0:00:18]} Qe7 {[%emt 0:00:17]} 30. Qd1 {[%emt 0:02:33]} Rxd5 {[%emt 0:00:22]} 31. Qxd5 {[%emt 0:00:08]} h6 {[%emt 0:01:07]} 32. f4 {[%emt 0:01:42]} Qxe3+ {[%emt 0:00:17]} 33. Kf1 {[%emt 0:00:32]} Qc1+ {[%emt 0:00:10]} 34. Ke2 {[%emt 0:00:48]} Ne6 {[%emt 0:01:10]} 35. Be4 {[%emt 0:12:21]} Qb2+ {[%emt 0:00:21]} 36. Qd2 {[%emt 0:00:10]} Qa3 {[%emt 0:00:46]} 37. Kf3 {[%emt 0:01:13]} Qe7 {[%emt 0:00:46]} 38. Qd5 {[%emt 0:01:40]} g6 {[%emt 0:00:37]} 39. Qb7 {[%emt 0:01:04]} Qc5 {[%emt 0:01:10]} 40. Qd5 {[%emt 0:00:44]} Qc3+ {[%emt 0:00:20]} 41. Kg4 {[%emt 0:30:22]} Qc8 {[%emt 0:30:36]} 42. Qa8 {[%emt 0:00:42]} Qxa8 {[%emt 0:00:40]} 43. Bxa8 {[%emt 0:00:04]} Nd4 {[%emt 0:00:12]} 44. Kh3 {[%emt 0:00:25]} Kg7 {[%emt 0:00:08]} 45. Kg2 {[%emt 0:00:05]} Kf6 {[%emt 0:00:09]} 46. Kf2 {[%emt 0:00:06]} Ke6 {[%emt 0:01:11]} 47. Ke3 {[%emt 0:01:02]} Nb5 {[%emt 0:00:25]} 48. Kd3 {[%emt 0:00:28]} Nc7 {[%emt 0:00:32]} 49. Bg2 {[%emt 0:00:13]} Kd6 {[%emt 0:00:27]} 50. Kc4 {[%emt 0:00:11]} f6 {[%emt 0:00:31]} 51. a4 {[%emt 0:01:05]} a6 {[%emt 0:00:23]} 52. Be4 {[%emt 0:01:04]} g5 {[%emt 0:00:13]} 53. fxg5 {[%emt 0:00:10]} fxg5 {[%emt 0:00:08]} 54. Bb7 {[%emt 0:00:23]} a5 {[%emt 0:01:24]} 55. Bf3 {[%emt 0:01:01]} Ke6 {[%emt 0:00:39]} 56. Bh5 {[%emt 0:00:00]} Kd6 {[%emt 0:00:00]} 57. Bf3 {[%emt 0:00:00]} Ke5 {[%emt 0:00:00]} 58. Bb7 {[%emt 0:00:00]} Ke6 {[%emt 0:00:00]} 59. Bf3 {[%emt 0:00:00]} Ke5 {[%emt 0:00:00]} 60. Bb7 {[%emt 0:00:00]} Ke6 {[%emt 0:00:00]} 61. Bf3 {[%emt 0:00:00]} Ke5 {[%emt 0:00:00]} 62. Bb7 {[%emt 0:00:00]} Ke6 {[%emt 0:00:00]} 63. Bf3 {[%emt 0:00:00]} Ke5 {[%emt 0:00:00]} 64. Bb7 {[%emt 0:00:00]} 1/2-1/2

[Event "WCCC G10 2019"]
[Site "Weifang"]
[Date "2019.08.28"]
[Round "7.3"]
[White "Lee, Alice"]
[Black "Shukhman, Anna"]
[Result "1-0"]
[ECO "E43"]
[WhiteElo "1822"]
[BlackElo "1806"]
[Annotator "NA RC"]
[PlyCount "163"]
[EventDate "2019.08.21"]
[EventType "swiss"]
[EventCountry "CHN"]
[SourceTitle "playchess.com"]
[Source "ChessBase"]
[SourceQuality "1"]
[TimeControl "40/5400+30:1800+30"]

1. d4 {[%emt 0:00:00]} Nf6 {[%emt 0:00:00]} 2. c4 {[%emt 0:00:00]} e6 {[%emt 0:00:00]} 3. Nc3 {[%emt 0:00:00]} Bb4 {[%emt 0:00:00]} 4. e3 {[%emt 0:00:00]} b6 {[%emt 0:00:00]} 5. Bd3 {[%emt 0:00:00]} Bb7 {[%emt 0:00:00]} 6. f3 {[%emt 0:00:01]} d6 {[%emt 0:02:23] E43: Nimzo-Indian: Rubinstein: 4...b6} (6... c5 7. Nge2 cxd4 8. exd4 d5 9. a3 dxc4 10. Bxc4 Be7 11. O-O O-O 12. Be3 Na6 13. Qd3 Nc7 14. Bg5 Nfd5 15. Bd2 Qd7 16. Bf4 Nxf4 17. Nxf4 {½-½ (111) Rakhmanov,A (2665)-Idani,P (2573) Dubai 2017}) 7. Nge2 {[%emt 0:00:52]} e5 {[%emt 0:00:50]} 8. Qa4+ {[%emt 0:01:51]} Nc6 {[%emt 0:00:07]} 9. d5 {[%emt 0:00:23]} Bxc3+ {[%emt 0:00:12]} 10. Nxc3 {[%emt 0:00:25]} Qd7 {[%emt 0:00:08]} 11. dxc6 {[%emt 0:00:26]} Bxc6 {[%emt 0:00:03]} 12. Qc2 {[%emt 0:00:27]} h5 $146 {[%emt 0:02:33]} ({Predecessor:} 12... O-O 13. O-O Ne8 14. Bxh7+ {1-0 (24) Samadov,R (1997)-Dale,G (1597) Riga 2018}) 13. Ne4 {[%emt 0:02:18]} Ng8 {[%emt 0:05:11]} 14. O-O {[%emt 0:04:00]} f5 {[%emt 0:06:43]} 15. Ng5 {[%emt 0:01:56]} Qe7 {[%emt 0:07:50]} 16. h4 {[%emt 0:03:28]} g6 {[%emt 0:00:56]} 17. g3 {[%emt 0:02:36]} Nh6 {[%emt 0:07:34]} 18. b4 {[%emt 0:04:52]} e4 {[%emt 0:15:04]} 19. Qc3 {[%emt 0:07:40]} O-O-O {[%emt 0:00:56]} 20. Be2 {[%emt 0:03:19]} exf3 {[%emt 0:06:16]} 21. Bxf3 {[%emt 0:03:04]} Bxf3 {[%emt 0:00:30]} 22. Rxf3 {[%emt 0:02:32]} Ng4 {[%emt 0:06:29]} 23. Bb2 {[%emt 0:03:19]} Rhe8 {[%emt 0:03:29]} 24. a4 {[%emt 0:05:31]} c5 {[%emt 0:04:55]} 25. a5 {[%emt 0:05:45]} Qb7 {[%emt 0:05:35]} 26. axb6 {[%emt 0:04:58]} axb6 {[%emt 0:00:25]} 27. Rd1 {[%emt 0:05:54]} d5 {[%emt 0:07:45]} 28. bxc5 {[%emt 0:09:07]} Ne5 $2 {[%emt 0:04:37] [#]} (28... dxc4 29. Rxd8+ Rxd8 30. Qxc4 Rd1+ 31. Rf1 Rxf1+ 32. Qxf1 bxc5) 29. cxd5 $1 {[%emt 0:12:30]} Nxf3+ {[%emt 0:01:17]} 30. Nxf3 {[%emt 0:00:02]} Qc7 {[%emt 0:01:41]} 31. d6 {[%emt 0:02:35]} Qxc5 {[%emt 0:00:17]} 32. Qxc5+ {[%emt 0:01:19]} bxc5 {[%emt 0:00:05]} 33. Ne5 {[%emt 0:00:38]} Re6 {[%emt 0:07:14]} 34. d7+ {[%emt 0:01:42]} Kc7 {[%emt 0:00:06]} 35. Bc3 {[%emt 0:01:50]} Ra6 {[%emt 0:00:05]} 36. e4 {[%emt 0:02:32]} fxe4 {[%emt 0:01:07]} 37. Bd2 {[%emt 0:00:43]} Rxd7 {[%emt 0:02:08]} 38. Nxd7 {[%emt 0:00:14]} Kxd7 {[%emt 0:00:04]} 39. Bb4+ {[%emt 0:01:24]} Ke6 {[%emt 0:02:08]} 40. Bxc5 {[%emt 0:00:16]} Rc6 {[%emt 0:00:16]} 41. Be3 {[%emt 0:30:58]} Ra6 {[%emt 0:32:52]} 42. Kf2 {[%emt 0:01:30]} Ra2+ {[%emt 0:00:00]} 43. Rd2 {[%emt 0:00:00]} Ra5 {[%emt 0:00:00]} 44. Bf4 {[%emt 0:00:00]} Rb5 {[%emt 0:00:00]} 45. Ke3 {[%emt 0:00:00]} Kf5 {[%emt 0:00:00]} 46. Bd6 {[%emt 0:00:00]} Rb1 {[%emt 0:00:00]} (46... Rb3+ $142 47. Ke2 g5 48. hxg5 Kxg5) 47. Rf2+ {[%emt 0:00:00]} Ke6 {[%emt 0:00:00]} 48. Bf4 {[%emt 0:00:00]} Rb4 {[%emt 0:00:00]} 49. Rd2 {[%emt 0:00:00]} Ra4 {[%emt 0:00:00] [#]} 50. Rd4 $1 {[%emt 0:00:00]} Ra5 {[%emt 0:00:00]} 51. Kxe4 {[%emt 0:00:00]} Ra6 {[%emt 0:00:00]} 52. Rb4 {[%emt 0:00:00]} Kf7 $18 {[%emt 0:00:00]} 53. Bg5 {[%emt 0:00:00]} Kg7 {[%emt 0:00:00]} 54. Rb7+ {[%emt 0:00:00]} Kg8 {[%emt 0:00:00]} 55. Be3 {[%emt 0:00:00]} Ra5 {[%emt 0:00:00]} 56. Bd4 {[%emt 0:00:00]} Kf8 {[%emt 0:00:00]} 57. Rb6 {[%emt 0:00:00]} g5 {[%emt 0:01:04]} 58. Rf6+ {[%emt 0:00:00]} Ke7 {[%emt 0:00:16]} 59. Rf5 {[%emt 0:00:00]} Ra6 {[%emt 0:00:34]} 60. Rxg5 {[%emt 0:00:00]} Rh6 {[%emt 0:00:24]} 61. Kf5 {[%emt 0:00:00]} Kf7 {[%emt 0:00:22]} 62. Rg7+ {[%emt 0:00:00]} Kf8 {[%emt 0:00:15]} 63. Kg5 {[%emt 0:00:00]} Rc6 {[%emt 0:00:28]} 64. Kxh5 {[%emt 0:00:00]} Rc4 {[%emt 0:00:10]} 65. Bf6 {[%emt 0:00:00]} Rc6 {[%emt 0:00:13]} 66. Kg6 {[%emt 0:00:00]} Rc4 {[%emt 0:00:14]} 67. Kf5 {[%emt 0:00:00]} Rc5+ {[%emt 0:00:05]} 68. Be5 {[%emt 0:00:00]} Rxe5+ {[%emt 0:00:10]} 69. Kxe5 {[%emt 0:00:00]} Kxg7 {[%emt 0:00:04]} 70. g4 {[%emt 0:00:00]} Kg6 {[%emt 0:00:04]} 71. g5 {[%emt 0:00:00]} Kg7 {[%emt 0:00:07]} 72. h5 {[%emt 0:00:00]} Kf7 {[%emt 0:00:04]} 73. Kf5 {[%emt 0:00:00]} Kg7 {[%emt 0:00:06]} 74. h6+ {[%emt 0:00:00]} Kf7 {[%emt 0:00:05]} 75. g6+ {[%emt 0:00:00]} Kg8 {[%emt 0:00:07]} 76. Kf6 {[%emt 0:00:00]} Kh8 {[%emt 0:00:04]} 77. g7+ {[%emt 0:00:00]} Kg8 {[%emt 0:00:02]} 78. h7+ {[%emt 0:00:00]} Kxh7 {[%emt 0:00:03]} 79. Kf7 {[%emt 0:00:00]} Kh6 {[%emt 0:00:03]} 80. g8=Q {[%emt 0:00:00]} Kh5 {[%emt 0:00:05]} 81. Qg3 {[%emt 0:00:00]} Kh6 {[%emt 0:00:03]} 82. Qh4# {[%emt 0:00:06]} 1-0

[Event "WCCC G10 2019"]
[Site "Weifang"]
[Date "2019.08.28"]
[Round "7.4"]
[White "Khamdamova, Afruza"]
[Black "Feng, Eunice"]
[Result "0-1"]
[ECO "B92"]
[WhiteElo "1607"]
[BlackElo "1280"]
[Annotator "NA RC"]
[PlyCount "90"]
[EventDate "2019.08.21"]
[EventType "swiss"]
[EventCountry "CHN"]
[SourceTitle "playchess.com"]
[Source "ChessBase"]
[SourceQuality "1"]
[TimeControl "40/5400+30:1800+30"]

1. e4 {[%emt 0:00:00]} c5 {[%emt 0:00:00]} 2. Nf3 {[%emt 0:00:00]} d6 {[%emt 0:00:00]} 3. d4 {[%emt 0:00:00]} Nf6 {[%emt 0:00:00]} 4. Nc3 {[%emt 0:00:01]} cxd4 {[%emt 0:00:00]} 5. Nxd4 {[%emt 0:00:06]} a6 {[%emt 0:00:01]} 6. Be2 {[%emt 0:01:07]} e5 {[%emt 0:00:10]} 7. Nb3 {[%emt 0:00:22]} Be7 {[%emt 0:00:12]} 8. O-O {[%emt 0:05:52]} O-O {[%emt 0:00:10]} 9. f4 {[%emt 0:00:10]} Qc7 {[%emt 0:02:58]} 10. a4 {[%emt 0:35:49]} b6 {[%emt 0:02:09]} 11. Qe1 {[%emt 0:19:01]} Bb7 {[%emt 0:00:52]} 12. Bf3 {[%emt 0:00:14]} Nbd7 {[%emt 0:02:00]} 13. f5 {[%emt 0:04:22]} d5 {[%emt 0:08:46]} 14. exd5 {[%emt 0:13:00]} Bb4 {[%emt 0:00:14]} 15. Qg3 {[%emt 0:06:17]} Kh8 {[%emt 0:06:39]} 16. Rd1 {[%emt 0:07:27]} Bxc3 {[%emt 0:00:28]} 17. d6 {[%emt 0:00:16]} Bd4+ {[%emt 0:10:36]} 18. Nxd4 {[%emt 0:00:09]} Qc8 {[%emt 0:00:06]} 19. Bxb7 {[%emt 0:00:54]} Qxb7 {[%emt 0:00:06]} 20. Ne2 {[%emt 0:00:49]} Rac8 {[%emt 0:06:08]} 21. Nc3 {[%emt 0:00:28]} Qc6 {[%emt 0:04:15]} 22. Qd3 {[%emt 0:02:02]} Nc5 {[%emt 0:04:28]} 23. Qe2 {[%emt 0:00:08]} Nce4 {[%emt 0:02:22]} 24. Nxe4 {[%emt 0:00:16]} Nxe4 {[%emt 0:00:06]} 25. d7 {[%emt 0:00:14]} Rcd8 {[%emt 0:00:52]} 26. Be3 {[%emt 0:00:49]} Nf6 {[%emt 0:12:08]} 27. c3 {[%emt 0:01:08]} Nd5 {[%emt 0:10:29]} 28. Qf3 {[%emt 0:01:41]} Rxd7 {[%emt 0:00:10]} 29. Rd2 {[%emt 0:00:09]} Qc4 {[%emt 0:03:43]} 30. a5 {[%emt 0:01:24]} b5 {[%emt 0:02:44]} 31. Rad1 {[%emt 0:00:16]} e4 {[%emt 0:02:06]} 32. Qf2 {[%emt 0:00:25]} Nxe3 {[%emt 0:00:09]} 33. Qxe3 {[%emt 0:00:10]} Rxd2 {[%emt 0:01:14]} 34. Rxd2 {[%emt 0:00:10]} Re8 {[%emt 0:00:49]} 35. Qd4 {[%emt 0:01:22]} Qc7 {[%emt 0:07:33]} 36. Qd7 {[%emt 0:00:40]} Qc5+ {[%emt 0:01:19]} 37. Rd4 {[%emt 0:00:20]} Rf8 {[%emt 0:04:51]} 38. Qd6 {[%emt 0:00:21]} Qc8 {[%emt 0:04:06]} 39. f6 {[%emt 0:00:41]} Re8 {[%emt 0:01:20]} 40. fxg7+ {[%emt 0:00:26]} Kg8 {[%emt 0:00:39]} 41. Qd7 {[%emt 0:16:14]} Qb8 {[%emt 0:11:13]} 42. Qf5 {[%emt 0:12:46]} Qa7 {[%emt 0:07:31]} 43. Kh1 {[%emt 0:02:07]} Qc7 {[%emt 0:03:27]} 44. Rd7 {[%emt 0:01:06]} Qc4 {[%emt 0:00:16]} 45. Qd5 {[%emt 0:00:34]} Qf1# {[%emt 0:00:06]} 0-1

[Event "WCCC G10 2019"]
[Site "Weifang"]
[Date "2019.08.28"]
[Round "7.5"]
[White "Li, Rachael"]
[Black "Zhou, Yafei"]
[Result "1-0"]
[ECO "C07"]
[WhiteElo "1911"]
[BlackElo "1757"]
[Annotator "NA RC"]
[PlyCount "113"]
[EventDate "2019.08.21"]
[EventType "swiss"]
[EventCountry "CHN"]
[SourceTitle "playchess.com"]
[Source "ChessBase"]
[SourceQuality "1"]
[TimeControl "40/5400+30:1800+30"]

{[%evp 26,113,14,32767,32767,-22,-13,-20,-10,-45,-20,32767,26,36,157,154,321,32767,32767,26,37,28,41,25,60,48,52,65,126,127,144,165,194,32767,229,32767,32767,32767,32767,32767,32767,32767,32767,32767,32767,271,274,252,311,341,417,389,32767,572,356,224,195,275,322,32767,360,431,403,496,493,32767,32767,32767,32767,32767,32767,32767,32767,32767,690,32767,32767,5189,29992,29990,29990,29991,29991,29992,29992,29993,29996,532,29993,29994]} 1. e4 {[%emt 0:00:00]} e6 {[%emt 0:00:00]} 2. d4 {[%emt 0:00:00]} d5 {[%emt 0:00:00]} 3. Nd2 {[%emt 0:00:00]} c5 {[%emt 0:00:00]} 4. Ngf3 {[%emt 0:00:00]} cxd4 {[%emt 0:00:00]} 5. exd5 {[%emt 0:00:00]} Qxd5 {[%emt 0:00:00]} 6. Bc4 {[%emt 0:00:00]} Qd8 {[%emt 0:00:18]} 7. O-O {[%emt 0:00:08]} a6 {[%emt 0:00:41]} 8. a4 {[%emt 0:00:00] C07: French Tarrasch: 3...c5, 4 Ngf3 and 4 exd5 Qxd5} (8. Nb3 Nc6 9. Nbxd4 Nxd4 10. Nxd4 Qc7 11. Bd3 Nf6 12. Re1 Bd7 13. Qf3 O-O-O 14. Bf4 Bd6 15. Bxd6 Qxd6 {½-½ (80) Gonzalez Vidal,Y (2543)-Harikrishna,P (2743) Tbilisi 2017}) 8... Nc6 {[%emt 0:01:38]} 9. Nb3 {[%emt 0:00:00]} Qc7 {[%emt 0:01:33]} 10. Qe2 {[%emt 0:00:15]} Bd6 {[%emt 0:00:58]} 11. Rd1 {[%emt 0:00:12]} Nge7 {[%emt 0:01:48]} 12. Nbxd4 {[%emt 0:04:22]} Nxd4 {[%emt 0:00:35]} 13. Rxd4 {[%emt 0:00:44]} Bd7 {[%emt 0:02:39]} 14. c3 $146 {[%emt 0:09:27]} ({Predecessor:} 14. Bd3 Bc6 15. Rc4 {½-½ (44) Alsina Leal,D (2480)-Espinosa Aranda,A (2451) Linares 2018}) 14... Bc6 {[%emt 0:03:18]} 15. Bb3 {[%emt 0:23:15]} Bxf3 {[%emt 0:05:39]} 16. Qxf3 {[%emt 0:00:10]} Bxh2+ {[%emt 0:11:03]} 17. Kh1 {[%emt 0:00:06]} Be5 {[%emt 0:01:52]} 18. Rc4 {[%emt 0:06:41]} Qd7 {[%emt 0:21:13]} 19. Be3 {[%emt 0:14:05]} Nf5 {[%emt 0:10:45]} (19... O-O $14) 20. Rd1 {[%emt 0:05:30]} Qe7 $2 {[%emt 0:01:21]} (20... Bd6 $16) 21. Bc5 {[%emt 0:03:18]} Bd6 {[%emt 0:02:14] [#]} 22. Bxd6 $2 {[%emt 0:04:22]} (22. Rxd6 $1 $18 {[%mdl 512]} Nxd6 23. Qd3) 22... Nxd6 {[%emt 0:00:08]} 23. Rcd4 {[%emt 0:00:15]} Nf5 {[%emt 0:01:23]} 24. Rd7 {[%emt 0:03:23]} Qh4+ {[%emt 0:03:21]} 25. Kg1 {[%emt 0:00:04]} O-O {[%emt 0:01:02]} 26. Rxb7 {[%emt 0:01:29]} Rfd8 {[%emt 0:03:09]} ({Black should play} 26... g6 $14) 27. Rdd7 {[%emt 0:02:32]} Rxd7 {[%emt 0:03:39]} 28. Rxd7 {[%emt 0:00:02]} Rd8 {[%emt 0:01:59]} (28... Rf8 $16) 29. Qd3 {[%emt 0:01:55]} Rxd7 {[%emt 0:02:14]} 30. Qxd7 {[%emt 0:00:04]} g6 {[%emt 0:00:38]} 31. Qc8+ {[%emt 0:04:05]} Kg7 {[%emt 0:00:21]} 32. Qxa6 {[%emt 0:00:08]} Qf4 {[%emt 0:00:48]} 33. Qe2 {[%emt 0:01:49]} Qc1+ {[%emt 0:01:00]} 34. Bd1 {[%emt 0:00:34]} Qa1 {[%emt 0:00:41]} 35. Qc2 {[%emt 0:00:57]} Nd6 {[%emt 0:02:35]} 36. Kh2 {[%emt 0:04:39]} Nc4 {[%emt 0:00:35]} 37. b3 {[%emt 0:01:11]} Na3 {[%emt 0:03:01]} 38. Qd2 {[%emt 0:05:23]} Nb1 {[%emt 0:00:36]} 39. Qc1 {[%emt 0:01:08]} ({Not} 39. Qd4+ Kg8 $16) 39... Qa2 {[%emt 0:00:27]} 40. Qc2 {[%emt 0:00:12]} Qa1 {[%emt 0:01:54] [#]} 41. c4 $1 {[%emt 0:31:49]} Qe5+ {[%emt 0:30:10]} 42. g3 {[%emt 0:00:13]} Nc3 {[%emt 0:00:17]} 43. Bf3 {[%emt 0:01:00]} g5 {[%emt 0:01:25]} 44. Qd2 {[%emt 0:03:33]} h6 {[%emt 0:00:33]} 45. Qe3 {[%emt 0:00:30]} Qa5 {[%emt 0:02:05]} 46. c5 {[%emt 0:01:32]} Na2 {[%emt 0:02:34]} 47. c6 {[%emt 0:01:54]} e5 {[%emt 0:00:38]} 48. b4 {[%emt 0:00:00]} Nxb4 {[%emt 0:00:00]} 49. Qc3 {[%emt 0:00:00]} Nxc6 {[%emt 0:00:00]} 50. Qxc6 {[%emt 0:00:00]} Qe1 {[%emt 0:00:00]} 51. Kg2 {[%emt 0:00:00]} f6 {[%emt 0:00:00]} 52. Bh5 {[%emt 0:00:00]} Qb1 {[%emt 0:00:00]} 53. Qd7+ {[%emt 0:00:00]} Kh8 {[%emt 0:00:00]} 54. Qe8+ {[%emt 0:00:00]} Kg7 {[%emt 0:00:00]} 55. Qe7+ {[%emt 0:00:00]} Kg8 {[%emt 0:00:00]} 56. Qf7+ {[%emt 0:00:00]} (56. Bf7+ $142 Kh7 57. Be6+ Kh8 58. Qf8+ {[%mdl 64] Double Attack} Kh7 59. Qg8#) 56... Kh8 {[%emt 0:00:00]} 57. Bg6 {[%emt 0:00:00]} 1-0

[Event "WCCC G10 2019"]
[Site "Weifang"]
[Date "2019.08.28"]
[Round "7.6"]
[White "Mai, Hieu Linh"]
[Black "Rouda Essa, Alserkal"]
[Result "1/2-1/2"]
[ECO "C54"]
[WhiteElo "1344"]
[BlackElo "1601"]
[Annotator "NA"]
[PlyCount "81"]
[EventDate "2019.08.21"]
[EventType "swiss"]
[EventCountry "CHN"]
[SourceTitle "playchess.com"]
[Source "ChessBase"]
[SourceQuality "1"]
[TimeControl "40/5400+30:1800+30"]

1. e4 {[%emt 0:00:00]} e5 {[%emt 0:00:00]} 2. Nf3 {[%emt 0:00:31]} Nc6 {[%emt 0:00:05]} 3. Bc4 {[%emt 0:00:19]} Bc5 {[%emt 0:00:08]} 4. c3 {[%emt 0:00:53]} Nf6 {[%emt 0:00:41]} 5. d3 {[%emt 0:00:59]} a6 {[%emt 0:00:11]} 6. Bb3 {[%emt 0:00:59]} d6 {[%emt 0:00:13]} 7. O-O {[%emt 0:00:48]} Ba7 {[%emt 0:00:05]} 8. Re1 {[%emt 0:00:56]} O-O {[%emt 0:00:20]} 9. Nbd2 {[%emt 0:00:25]} Ng4 {[%emt 0:00:16]} 10. Re2 {[%emt 0:00:27]} Kh8 {[%emt 0:00:09]} 11. h3 {[%emt 0:00:43]} Nh6 {[%emt 0:00:06]} 12. Nf1 {[%emt 0:01:04]} f5 {[%emt 0:00:10]} 13. Bg5 {[%emt 0:03:13]} Qe8 {[%emt 0:00:23]} 14. Bxh6 {[%emt 0:00:42]} gxh6 {[%emt 0:00:07]} 15. exf5 {[%emt 0:03:08]} Bxf5 {[%emt 0:05:11]} 16. Kh2 {[%emt 0:09:30]} Bxh3 {[%emt 0:02:14]} 17. Kxh3 {[%emt 0:05:40]} Qh5+ {[%emt 0:00:09]} 18. Nh4 {[%emt 0:00:21]} Rf4 {[%emt 0:51:28]} 19. g3 {[%emt 0:02:54]} Qg4+ {[%emt 0:06:58]} 20. Kg2 {[%emt 0:06:10]} Raf8 {[%emt 0:03:47]} 21. Ne3 {[%emt 0:03:05]} Qg5 {[%emt 0:05:32]} 22. Qh1 {[%emt 0:08:19]} Ne7 {[%emt 0:07:19]} 23. Rf1 {[%emt 0:06:10]} c6 {[%emt 0:03:53]} 24. Qh2 {[%emt 0:08:16]} R4f6 {[%emt 0:03:51]} 25. Qh1 {[%emt 0:07:34]} d5 {[%emt 0:02:41]} 26. c4 {[%emt 0:02:58]} d4 {[%emt 0:03:54]} 27. Nc2 {[%emt 0:00:46]} c5 {[%emt 0:02:04]} 28. Ne1 {[%emt 0:01:19]} Bb8 {[%emt 0:01:22]} 29. Qh3 {[%emt 0:03:04]} Ng6 {[%emt 0:00:40]} 30. Nhf3 {[%emt 0:01:46]} Nf4+ {[%emt 0:00:18]} 31. Kh1 {[%emt 0:03:42]} Nxh3 {[%emt 0:00:12]} 32. Nxg5 {[%emt 0:00:13]} Nxg5 {[%emt 0:00:52]} 33. Kg2 {[%emt 0:03:00]} Kg7 {[%emt 0:00:10]} 34. Nc2 {[%emt 0:02:23]} Rf3 {[%emt 0:00:34]} 35. Ne1 {[%emt 0:00:29]} R3f6 {[%emt 0:00:12]} 36. Nc2 {[%emt 0:00:12]} Ne6 {[%emt 0:00:28]} 37. Rfe1 {[%emt 0:03:06]} Rg6 {[%emt 0:00:54]} 38. Kh2 {[%emt 0:03:22]} Ng5 {[%emt 0:00:18]} 39. Kg2 {[%emt 0:01:16]} Rgf6 {[%emt 0:00:52]} 40. Na3 {[%emt 0:01:51]} Rg6 {[%emt 0:00:40]} 41. Nb1 {[%emt 0:30:48]} 1/2-1/2

[Event "WCCC G10 2019"]
[Site "Weifang"]
[Date "2019.08.28"]
[Round "7.7"]
[White "Stoll, Lucia"]
[Black "Yesugen Khuchbayar"]
[Result "0-1"]
[ECO "B51"]
[WhiteElo "1596"]
[BlackElo "1325"]
[Annotator "NA RC"]
[PlyCount "78"]
[EventDate "2019.08.21"]
[EventType "swiss"]
[EventCountry "CHN"]
[SourceTitle "playchess.com"]
[Source "ChessBase"]
[SourceQuality "1"]
[TimeControl "40/5400+30:1800+30"]

1. e4 {[%emt 0:00:00]} c5 {[%emt 0:00:00]} 2. Nf3 {[%emt 0:00:02]} d6 {[%emt 0:00:00]} 3. Bb5+ {[%emt 0:00:26]} Nc6 {[%emt 0:00:00]} 4. O-O {[%emt 0:03:54]} e5 {[%emt 0:01:34]} 5. h3 {[%emt 0:02:08]} Nf6 {[%emt 0:01:27]} 6. Re1 {[%emt 0:02:21]} Be7 {[%emt 0:00:21]} 7. c3 {[%emt 0:04:44]} O-O {[%emt 0:01:37]} 8. d4 {[%emt 0:03:17]} cxd4 {[%emt 0:07:44]} 9. cxd4 {[%emt 0:01:05]} exd4 {[%emt 0:03:11]} 10. Nxd4 {[%emt 0:02:11]} Qb6 {[%emt 0:02:20]} 11. Nxc6 {[%emt 0:02:04]} bxc6 {[%emt 0:00:33]} 12. Bc4 {[%emt 0:01:57]} Be6 {[%emt 0:09:29]} 13. Bxe6 {[%emt 0:04:38]} fxe6 {[%emt 0:00:08]} 14. Qc2 {[%emt 0:03:25]} d5 {[%emt 0:23:40]} 15. e5 {[%emt 0:17:30]} Ne4 {[%emt 0:02:04]} 16. Rxe4 {[%emt 0:05:43]} dxe4 {[%emt 0:00:47]} 17. Be3 {[%emt 0:00:29]} c5 {[%emt 0:14:05]} 18. Nd2 {[%emt 0:03:23]} Rfd8 {[%emt 0:05:19]} 19. Nxe4 {[%emt 0:04:38]} Rd5 {[%emt 0:05:02]} 20. Nd2 {[%emt 0:01:46]} Rad8 {[%emt 0:01:35]} 21. Nc4 {[%emt 0:02:56]} Qb5 {[%emt 0:01:26]} 22. a4 {[%emt 0:08:12]} Qd7 {[%emt 0:01:41]} 23. Kf1 {[%emt 0:02:23]} Qe8 {[%emt 0:02:59]} 24. a5 {[%emt 0:05:12]} Qh5 {[%emt 0:01:26]} 25. Ke1 {[%emt 0:05:57]} Bg5 {[%emt 0:01:23]} 26. f4 {[%emt 0:02:33]} Bh4+ {[%emt 0:01:25]} 27. Bf2 {[%emt 0:01:04]} Bxf2+ {[%emt 0:00:19]} 28. Kxf2 {[%emt 0:00:19]} Qh4+ {[%emt 0:02:03]} 29. g3 {[%emt 0:02:00]} Qxh3 {[%emt 0:01:07]} 30. Rg1 {[%emt 0:01:34]} Rf8 {[%emt 0:04:54]} 31. Qc3 {[%emt 0:01:47]} Rd4 {[%emt 0:02:16]} 32. Nd2 {[%emt 0:01:18]} Rfd8 {[%emt 0:01:31]} 33. Nf3 {[%emt 0:00:38]} Rd3 {[%emt 0:00:27]} 34. Qxc5 {[%emt 0:00:46]} Qg4 {[%emt 0:01:03]} 35. Qc6 {[%emt 0:01:38]} Rd2+ {[%emt 0:01:49]} 36. Kf1 {[%emt 0:00:32]} Rd1+ {[%emt 0:00:32]} 37. Kg2 {[%emt 0:01:01]} R8d2+ {[%emt 0:01:35]} 38. Nxd2 {[%emt 0:00:07]} Rxd2+ 39. Kf1 {[%emt 0:00:01]} Qe2# 0-1